bitfinex/quotes_ETHUSD_20240822
["timestamp","ask_amount","ask_price","bid_price","bid_amount"]
[1724342597761,3.83936,2604.6,2604.0,0.631457]
[1724342598029,7.741,2605.2,2603.6,2.4743]
[1724342598030,3.84026,2604.0,2603.6,2.4743]
[1724342598307,10.5993,2605.0,2603.9,3.8403]
[1724342598623,3.83944,2604.6,2604.1,3.84009]
[1724342598765,3.83953,2604.5,2604.1,1.014269]
[1724342599301,7.67862,2604.7,2604.1,4.854349]
[1724342599514,0.55,2604.6,2604.1,1.014269]
[1724342599669,7.67911,2604.5,2604.1,1.014269]
[1724342599980,3.83952,2604.5,2604.1,1.014269]
[1724342600182,7.67911,2604.5,2604.1,1.014269]
[1724342600367,3.83952,2604.5,2604.1,1.014269]
[1724342600985,3.83952,2604.5,2604.1,4.854359]
[1724342601310,3.83952,2604.5,2604.2,0.7316659]
[1724342602390,0.55,2604.6,2604.1,4.854289]
[1724342602594,7.67805,2604.9,2604.3,3.83972]
[1724342602924,3.83909,2604.8,2604.3,3.83972]
[1724342603901,3.83909,2604.8,2604.4,2.4623]
[1724342604103,3.83901,2604.9,2604.5,0.630202]
[1724342604530,3.83907,2604.8,2604.4,2.4623]
[1724342604842,3.83923,2604.7,2604.4,2.4623]
[1724342604994,3.83901,2604.9,2604.4,6.30195]
[1724342605336,3.8387,2605.1,2604.6,3.83929]
[1724342605508,3.8387,2605.1,2604.7,4.2999141]
[1724342605725,3.83856,2605.2,2604.8,2.4623]
[1724342605913,3.83864,2605.1,2604.8,2.4623]
[1724342606100,3.83842,2605.3,2604.8,2.53907502]
[1724342606295,7.67687,2605.3,2604.8,2.53907502]
[1724342606499,3.83842,2605.3,2604.8,3.59921042]
[1724342606703,7.67687,2605.3,2604.8,3.59921042]
[1724342606897,3.83864,2605.1,2604.8,2.4623]
[1724342607809,7.67734,2605.1,2604.8,2.4623]
[1724342608013,3.83864,2605.1,2604.8,2.4623]
[1724342608224,7.67736,2605.1,2604.8,2.4623]
[1724342608743,3.83864,2605.1,2604.8,2.4623]
[1724342608948,3.83892,2604.9,2604.5,2.4178]
[1724342609103,3.83892,2604.9,2604.5,3.1418]
[1724342610609,4.38877,2605.0,2604.5,6.98129]
[1724342611280,3.83844,2605.3,2604.7,3.83913]
[1724342611580,3.83859,2605.2,2604.7,8.760285]
[1724342611729,3.83844,2605.3,2604.7,4.921155]
[1724342612115,3.83844,2605.3,2604.8,3.83899]
[1724342612931,3.83842,2605.3,2604.8,3.83899]
[1724342613554,3.83842,2605.3,2604.7,4.921155]
[1724342613739,3.83855,2605.2,2604.8,0.4921155]
[1724342614054,7.6774,2605.1,2604.7,1.082025]
[1724342614353,3.8384,2605.3,2604.6,3.83927]
[1724342614587,3.83849,2605.2,2604.8,3.83904]
[1724342614861,3.8384,2605.3,2604.8,3.83904]
[1724342615173,7.67682,2605.3,2604.8,3.83904]
[1724342615378,3.8384,2605.3,2604.9,0.383904]
[1724342615518,7.67682,2605.3,2604.9,0.383904]
[1724342616215,3.8384,2605.3,2604.9,0.383904]
[1724342616962,3.8384,2605.3,2604.9,4.222784]
[1724342617195,3.8384,2605.3,2605.0,0.8061824]
[1724342617353,4.38813,2605.5,2605.0,0.8061824]
[1724342617354,3.83819,2605.4,2605.0,0.8061824]
[1724342620082,3.83835,2605.3,2605.0,0.8061824]
[1724342620299,7.67678,2605.3,2604.9,2.854404]
[1724342620451,3.83835,2605.3,2604.9,2.854404]
[1724342620653,7.67675,2605.3,2604.9,2.854404]
[1724342620857,3.83835,2605.3,2604.9,2.854404]
[1724342621460,3.83848,2605.2,2604.6,3.83926]
[1724342621661,3.83855,2605.2,2604.6,2.4011]
[1724342621883,3.83872,2605.1,2604.6,9.24044]
[1724342622092,3.83872,2605.1,2604.6,6.24044]
[1724342622306,3.83847,2605.2,2604.6,6.24044]
[1724342622466,7.67705,2605.2,2604.7,4.535574]
[1724342622667,3.83847,2605.2,2604.7,4.535574]
[1724342623084,3.83878,2605.0,2604.7,0.696444]
[1724342623591,3.83863,2605.1,2604.7,0.696444]
[1724342624367,7.67736,2605.1,2604.6,6.24037]
[1724342625305,3.979,2605.3,2604.4,7.24]
[1724342625306,3.839,2604.9,2604.4,7.24]
[1724342625518,3.839,2604.9,2604.4,11.07964]
[1724342625684,3.83907,2604.8,2604.4,7.24]
[1724342626022,3.839,2604.9,2604.4,7.24]
[1724342626023,3.83922,2604.7,2604.4,7.24]
[1724342626161,3.83922,2604.7,2604.2,3.83981]
[1724342626367,4.38936,2604.6,2604.1,2.4737]
[1724342626564,4.38936,2604.6,2604.1,3.105085]
[1724342626994,4.38936,2604.6,2604.1,6.31379]
[1724342628414,4.38936,2604.6,2604.1,10.15388]
[1724342628629,4.38936,2604.6,2604.1,6.31379]
[1724342628851,7.67801,2604.9,2604.3,3.8397]
[1724342628989,0.55,2604.8,2604.4,3.8396]
[1724342629186,0.55,2604.8,2604.3,7.67943]
[1724342629387,0.55,2604.8,2604.3,4.855013]
[1724342629633,4.38907,2604.8,2604.3,4.855013]
[1724342629784,3.83921,2604.7,2604.3,1.015313]
[1724342629989,3.83921,2604.7,2604.2,3.83995]
[1724342629990,7.67856,2604.7,2604.2,3.83995]
[1724342630186,4.38937,2604.6,2603.9,3.84028]
[1724342630418,3.83965,2604.4,2603.9,3.84028]
[1724342630730,3.83951,2604.5,2603.9,3.84028]
[1724342631026,0.55,2604.4,2603.9,5.496268]
[1724342631233,0.55,2604.4,2604.0,3.84022]
[1724342631387,4.38968,2604.4,2603.9,5.496378]
[1724342631587,0.55,2604.4,2604.0,3.84023]
[1724342631786,0.55,2604.5,2604.0,3.84023]
[1724342632231,3.83916,2604.8,2604.3,3.83977]
[1724342632405,0.55,2604.7,2604.3,3.83977]
[1724342632607,4.38921,2604.7,2604.2,6.19124]
[1724342632913,3.83888,2605.0,2604.2,6.19115]
[1724342633111,3.83888,2605.0,2604.3,0.619115]
[1724342633324,3.83888,2605.0,2604.2,2.3513]
[1724342633325,3.83886,2605.0,2604.4,3.83954]
[1724342633501,3.83899,2604.9,2604.4,3.83954]
[1724342633693,3.83892,2604.9,2604.2,6.19112]
[1724342633893,3.83892,2604.9,2604.4,3.83964]
[1724342634127,3.83886,2605.0,2604.6,2.3415]
[1724342634900,4.38892,2604.9,2604.6,2.3415]
[1724342635230,4.38892,2604.9,2604.5,0.383964]
[1724342635993,0.55,2604.9,2604.5,0.383964]
[1724342636231,4.38894,2604.9,2604.5,0.383964]
[1724342636762,0.55,2604.9,2604.5,0.383964]
[1724342636966,3.83858,2605.2,2604.6,2.4309]
[1724342637242,0.55,2605.1,2604.7,4.1206764]
[1724342637532,7.67657,2605.4,2604.7,4.1205564]
[1724342637736,3.83833,2605.3,2604.8,3.83903]
[1724342638048,3.83826,2605.4,2604.8,3.83903]
[1724342638049,3.83826,2605.4,2605.0,2.2901]
[1724342640009,7.67653,2605.4,2605.0,2.2901]
[1724342640238,3.83826,2605.4,2605.0,2.2901]
[1724342640434,7.67653,2605.4,2605.0,2.2901]
[1724342640634,3.83826,2605.4,2605.0,2.2901]
[1724342640836,3.83826,2605.4,2605.1,0.30860586]
[1724342641200,3.83826,2605.4,2605.0,2.2901]
[1724342641910,3.83804,2605.5,2605.0,6.12884]
[1724342642456,3.83819,2605.4,2605.0,2.2901]
[1724342642938,3.83836,2605.3,2604.9,0.79595864]
[1724342643308,3.83869,2605.1,2604.7,9.5862]
[1724342643510,3.83836,2605.3,2604.7,9.5862]
[1724342643511,4.38848,2605.2,2604.7,9.5862]
[1724342644609,3.83878,2605.0,2604.7,7.28]
[1724342645239,3.83878,2605.0,2604.4,9.16947]
[1724342645547,3.83871,2605.1,2604.6,3.83935]
[1724342645704,3.83871,2605.1,2604.7,0.383935]
[1724342645900,0.55,2605.2,2604.7,4.223135]
[1724342646102,0.55,2605.2,2604.8,6.16893]
[1724342646567,3.83819,2605.4,2604.8,6.16889]
[1724342646839,3.83812,2605.5,2604.9,3.8388]
[1724342646996,0.55,2605.4,2604.9,3.8388]
[1724342647195,3.83833,2605.3,2604.9,1.0391745]
[1724342647445,4.38818,2605.4,2604.9,1.0391745]
[1724342647612,0.55,2605.4,2605.0,3.83876]
[1724342648299,3.83782,2605.7,2605.2,2.2641]
[1724342648500,3.83782,2605.7,2605.2,6.10256]
[1724342648722,7.67567,2605.7,2605.2,6.10256]
[1724342648936,3.83792,2605.6,2605.2,2.2641]
[1724342649123,3.83827,2605.4,2604.9,2.2641]
[1724342649325,3.83827,2605.4,2604.9,4.0247185]
[1724342649527,3.979,2605.6,2604.9,4.0247185]
[1724342649729,3.979,2605.6,2604.9,7.8635485]
[1724342649902,3.979,2605.6,2605.1,3.83853]
[1724342650107,7.81691,2605.6,2605.2,0.383853]
[1724342650617,7.81691,2605.6,2604.9,11.7024985]
[1724342650863,7.81691,2605.6,2605.0,3.83877]
[1724342651004,3.83803,2605.5,2605.0,3.83877]
[1724342651338,3.83805,2605.5,2605.0,3.83877]
[1724342651842,4.38831,2605.4,2604.9,4.0247185]
[1724342652139,4.38831,2605.4,2605.0,0.78636985]
[1724342652840,0.55,2605.4,2604.7,9.678]
[1724342653041,3.83869,2605.1,2604.7,9.678]
[1724342653240,3.83869,2605.1,2604.7,2.398]
[1724342653443,3.83869,2605.1,2604.8,0.623728]
[1724342653621,3.83869,2605.1,2604.7,2.398]
[1724342654234,7.67684,2605.3,2604.7,6.2372]
[1724342654415,0.55,2605.2,2604.8,3.83906]
[1724342654743,3.83812,2605.5,2605.0,3.83874]
[1724342654744,7.67624,2605.5,2605.0,3.83874]
[1724342655119,3.83793,2605.6,2605.1,3.8386]
[1724342655444,3.83791,2605.6,2605.1,2.395]
[1724342656231,3.83783,2605.7,2605.1,2.395]
[1724342656443,3.83789,2605.6,2605.1,2.395]
[1724342656629,3.83789,2605.6,2605.1,3.0807436]
[1724342656630,3.83811,2605.5,2605.1,3.0807436]
[1724342657345,3.979,2605.9,2605.1,3.0807436]
[1724342657644,3.83798,2605.6,2605.1,3.0807436]
[1724342657817,0.55,2605.5,2605.1,3.0807436]
[1724342658508,0.55,2605.5,2605.1,6.9193436]
[1724342658708,0.55,2605.5,2605.2,1.07580136]
[1724342658948,3.83767,2605.8,2605.3,3.83832]
[1724342659250,3.93521557,2606.8,2605.5,2.384]
[1724342659251,3.83678,2606.4,2605.5,2.384]
[1724342659453,7.81569,2606.5,2605.5,2.384]
[1724342659619,3.83745,2605.9,2605.5,3.734205]
[1724342659807,7.67499,2605.9,2605.5,3.734205]
[1724342660009,3.83745,2605.9,2605.5,2.384]
[1724342660207,3.83787,2605.7,2605.4,7.28]
[1724342660447,3.83784,2605.7,2605.2,3.42690136]
[1724342660832,5.4738,2606.3,2605.1,2.3511]
[1724342661040,6.4528,2606.3,2605.1,2.3511]
[1724342661240,3.83738,2606.0,2605.4,3.83807]
[1724342661541,3.83738,2606.0,2605.1,2.3511]
[1724342661542,10.28971,2606.3,2605.2,3.83847]
[1724342661910,3.83764,2605.8,2605.2,3.83847]
[1724342662250,3.83764,2605.8,2605.3,1.002812]
[1724342662546,3.83828,2605.4,2605.0,7.28]
[1724342662752,3.83828,2605.4,2604.7,6.8391]
[1724342662753,3.83828,2605.4,2604.8,6.32724]
[1724342663108,3.83828,2605.4,2604.8,6.32717]
[1724342664053,3.83828,2605.4,2604.9,3.8389]
[1724342664210,3.83828,2605.4,2604.9,4.855507]
[1724342664411,3.83828,2605.4,2604.9,1.016607]
[1724342664835,4.38845,2605.3,2604.9,1.016607]
[1724342665035,4.38845,2605.3,2604.8,2.4882]
[1724342665852,3.83849,2605.2,2604.6,7.31]
[1724342666056,3.83878,2605.0,2604.5,2.4951]
[1724342666257,0.55,2605.1,2604.6,1.364469]
[1724342666554,4.38871,2605.1,2604.6,1.364469]
[1724342666920,0.55,2605.1,2604.8,3.83895]
[1724342667155,4.38834,2605.3,2604.6,9.043049]
[1724342667460,3.83873,2605.1,2604.6,1.364469]
[1724342667755,4.38877,2605.0,2604.6,1.364469]
[1724342667957,8.22763,2605.0,2604.4,11.14956]
[1724342668115,4.38877,2605.0,2604.5,3.83945]
[1724342668316,4.38877,2605.0,2604.5,3.83949]
[1724342668729,0.55,2605.0,2604.5,3.83949]
[1724342668949,10.03774,2605.2,2604.6,3.83932]
[1724342668950,0.55,2605.1,2604.6,3.83932]
[1724342669151,0.55,2605.1,2604.7,0.383932]
[1724342669357,3.83879,2605.0,2604.7,0.383932]
[1724342669638,0.55,2604.9,2604.6,3.83934]
[1724342669842,7.81727,2605.4,2604.3,6.61032376]
[1724342670056,7.81727,2605.4,2604.7,7.67823]
[1724342670057,4.38836,2605.3,2604.7,7.67823]
[1724342670263,0.55,2605.3,2604.8,6.24583]
[1724342670411,0.55,2605.3,2604.8,7.254323]
[1724342670753,3.83793,2605.6,2604.9,3.83882]
[1724342670939,3.83793,2605.6,2605.1,3.83853]
[1724342671142,3.83793,2605.6,2605.1,7.67706]
[1724342671354,3.83793,2605.6,2605.2,0.767706]
[1724342671915,3.83793,2605.6,2604.8,3.415293]
[1724342671916,2.4234,2605.8,2604.8,6.24583]
[1724342672117,6.83719,2606.1,2604.6,2.4057]
[1724342672118,3.83865,2605.1,2604.6,2.4057]
[1724342672335,10.10022,2605.3,2604.6,6.24502]
[1724342672539,3.83836,2605.3,2604.8,3.83898]
[1724342672731,3.979,2605.7,2605.0,3.83865]
[1724342672945,3.83812,2605.5,2605.1,0.767748]
[1724342673399,0.55,2605.6,2605.1,0.767748]
[1724342673859,4.38793,2605.6,2605.1,4.606358]
[1724342674793,0.55,2605.6,2605.1,4.606358]
[1724342675090,3.83805,2605.5,2605.1,0.767748]
[1724342675294,3.83834,2605.3,2605.0,2.303]
[1724342675792,3.8387,2605.1,2604.8,7.31]
[1724342675992,3.83877,2605.0,2604.8,7.31]
[1724342676197,3.8387,2605.1,2604.6,2.3025]
[1724342676496,7.67741,2605.1,2604.7,0.614199]
[1724342676658,3.8387,2605.1,2604.7,0.614199]
[1724342677053,3.8387,2605.1,2604.6,2.3025]
[1724342678087,3.8387,2605.1,2604.6,6.14178]
[1724342678969,3.83842,2605.3,2604.6,6.14178]
[1724342679168,3.83842,2605.3,2604.8,3.83906]
[1724342679169,7.67684,2605.3,2604.8,3.83906]
[1724342679494,3.83841,2605.3,2604.8,3.83906]
[1724342679691,3.83841,2605.3,2604.9,0.383906]
[1724342680095,6.26631,2605.5,2604.9,0.383906]
[1724342680398,3.83791,2605.6,2605.0,6.28033]
[1724342680583,7.67592,2605.6,2605.0,6.28027]
[1724342680759,3.83856,2605.2,2604.9,0.383906]
[1724342681186,3.8387,2605.1,2604.9,0.383906]
[1724342681527,3.8387,2605.1,2604.8,7.31]
[1724342681528,3.83877,2605.0,2604.8,7.31]
[1724342681659,3.83877,2605.0,2604.5,3.8395]
[1724342682119,3.83877,2605.0,2604.4,16.62595]
[1724342682459,3.83877,2605.0,2604.4,20.46552]
[1724342682696,3.83877,2605.0,2604.5,5.886032]
[1724342683473,6.3083,2605.4,2604.5,9.725462]
[1724342683674,0.55,2605.3,2604.5,2.046552]
[1724342683869,0.55,2605.3,2604.8,6.33312]
[1724342684084,0.55,2605.3,2604.9,1.017222]
[1724342684598,6.359,2605.7,2604.9,8.694972]
[1724342684770,6.359,2605.7,2604.9,4.856032]
[1724342684975,9.4014,2606.0,2605.1,3.83861]
[1724342685502,13.23871,2606.0,2604.9,4.856032]
[1724342685803,3.979,2605.7,2605.1,3.83852]
[1724342685983,9.4014,2606.0,2605.2,3.83833]
[1724342686186,9.4014,2606.0,2605.3,6.09424]
[1724342686187,3.0,2606.0,2605.3,6.09424]
[1724342686389,3.0,2606.1,2605.3,6.09424]
[1724342686586,3.0,2606.1,2605.4,0.993257]
[1724342686985,6.83715,2606.1,2605.4,0.993257]
[1724342687401,3.979,2606.0,2605.2,10.1393]
[1724342687763,3.979,2606.0,2605.3,3.83832]
[1724342688099,3.979,2606.0,2605.2,2.4626]
[1724342688303,7.8163,2606.0,2605.3,3.83829]
[1724342688809,3.8373,2606.0,2605.3,3.83829]
[1724342689011,0.55,2605.9,2605.4,1.013923]
[1724342689306,4.38744,2605.9,2605.4,1.013923]
[1724342690470,3.83761,2605.8,2605.4,1.013923]
[1724342691237,3.8381,2605.5,2605.1,7.31]
[1724342692068,3.83783,2605.7,2605.1,7.31]
[1724342692069,7.67567,2605.7,2605.1,7.31]
[1724342692269,7.67567,2605.7,2605.1,11.14855]
[1724342692270,4.38791,2605.6,2605.1,11.14855]
[1724342694504,7.67561,2605.7,2605.3,4.19243883]
[1724342694713,4.38801,2605.6,2605.3,2.3128]
[1724342694864,3.83818,2605.4,2605.2,1.49697832]
[1724342695068,3.83803,2605.5,2605.2,1.49697832]
[1724342696280,3.83848,2605.2,2604.8,11.14894]
[1724342696476,3.83848,2605.2,2604.8,7.31]
[1724342697094,3.83878,2605.0,2604.8,7.31]
[1724342697293,3.83878,2605.0,2604.5,3.8395]
[1724342697493,7.67717,2605.2,2604.6,5.338245]
[1724342697724,3.83877,2605.1,2604.6,5.338245]
[1724342697885,3.83892,2604.9,2604.6,1.498905]
[1724342698087,3.83922,2604.7,2604.4,7.31]
[1724342698316,3.83892,2604.9,2604.4,11.14956]
[1724342698482,3.83892,2604.9,2604.4,14.98913]
[1724342698683,3.83892,2604.9,2604.4,11.14956]
[1724342699587,3.83877,2605.0,2604.5,3.8395]
[1724342699789,0.55,2604.9,2604.5,5.185736]
[1724342700000,0.55,2604.9,2604.5,1.346236]
[1724342700199,3.83872,2605.1,2604.6,1.2495796]
[1724342700423,3.83899,2604.9,2604.4,7.31]
[1724342701119,3.83899,2604.9,2604.4,11.14956]
[1724342701320,4.38877,2605.0,2604.5,3.83948]
[1724342701528,4.38877,2605.0,2604.4,7.31]
[1724342701739,3.83906,2604.8,2604.4,7.31]
[1724342701890,3.83906,2604.8,2604.4,8.656248]
[1724342702682,3.83906,2604.8,2604.4,12.495888]
[1724342703301,8.22768,2605.0,2604.4,12.495888]
[1724342703487,3.83895,2604.9,2604.4,12.495888]
[1724342703687,3.83909,2604.8,2604.4,8.656248]
[1724342703884,3.83922,2604.7,2604.3,2.3128]
[1724342704085,3.83909,2604.8,2604.3,2.3128]
[1724342704352,3.83923,2604.7,2604.3,2.3128]
[1724342705219,3.83896,2604.9,2604.3,2.3128]
[1724342705394,6.16722,2605.3,2604.3,2.3128]
[1724342705595,3.83855,2605.2,2604.6,3.83922]
[1724342705858,3.83878,2605.0,2604.6,3.83922]
[1724342705990,3.83855,2605.2,2604.6,3.83922]
[1724342706195,3.83866,2605.1,2604.6,8.062412]
[1724342706420,3.83866,2605.1,2604.6,4.223142]
[1724342707651,3.83855,2605.2,2604.6,4.223142]
[1724342707652,3.83877,2605.0,2604.6,4.223142]
[1724342707951,3.83877,2605.0,2604.4,3.83958]
[1724342707952,3.83877,2605.0,2604.5,3.8395]
[1724342708246,7.67762,2605.0,2604.5,3.8395]
[1724342708451,0.55,2604.9,2604.4,3.83956]
[1724342708751,7.67763,2605.0,2604.5,0.615236]
[1724342708752,3.83877,2605.0,2604.5,0.615236]
[1724342708949,3.83885,2605.0,2604.6,2.4282]
[1724342709155,3.83885,2605.0,2604.6,6.26753]
[1724342709327,3.83885,2605.0,2604.7,0.6882766]
[1724342709917,3.83848,2605.2,2604.9,2.4053]
[1724342710116,3.83877,2605.0,2604.6,2.4053]
[1724342710622,3.83929,2604.7,2604.4,2.4053]
[1724342710821,3.83911,2604.8,2604.3,3.83978]
[1724342711140,3.83877,2605.0,2604.5,3.83949]
[1724342711341,3.83827,2605.4,2604.6,2.4053]
[1724342711530,5.3516,2605.7,2604.6,2.4053]
[1724342711732,3.8379,2605.6,2604.6,6.24461]
[1724342711936,3.83862,2605.1,2604.6,6.24461]
[1724342712116,3.83862,2605.1,2604.7,1.008397]
[1724342712320,7.67734,2605.1,2604.7,1.008397]
[1724342712632,3.83862,2605.1,2604.7,1.008397]
[1724342713431,3.83878,2605.0,2604.6,2.4053]
[1724342713758,2.3516,2605.2,2603.6,9.86870644]
[1724342713759,3.83923,2604.7,2604.4,2.3453]
[1724342713959,0.55,2604.9,2604.2,0.36022746]
[1724342713960,3.83959,2604.5,2604.2,2.3453]
[1724342714181,3.83939,2604.6,2604.1,0.00395548]
[1724342714182,3.83995,2604.2,2604.1,0.00395548]
[1724342714322,7.6799,2604.2,2604.1,0.00395548]
[1724342714681,10.5148,2604.2,2604.1,0.00395548]
[1724342716994,14.35475,2604.2,2604.1,0.00395548]
[1724342717172,15.06985,2604.2,2604.1,0.00395548]
[1724342717372,17.53435,2604.2,2604.1,0.00395548]
[1724342717609,21.3743,2604.2,2604.1,0.00395548]
[1724342717772,21.3743,2604.2,2602.7,6.13556]
[1724342717773,3.84137,2603.3,2602.7,6.13556]
[1724342717975,3.84137,2603.3,2602.8,0.384206]
[1724342718600,7.82003,2603.5,2602.8,4.226186]
[1724342718914,0.55,2603.4,2602.9,3.84185]
[1724342719086,0.55,2603.4,2603.0,0.4226056]
[1724342719639,4.39115,2603.4,2603.0,0.4226056]
[1724342719783,4.39115,2603.4,2602.8,4.226136]
[1724342720133,4.39115,2603.4,2602.9,3.84185]
[1724342720134,0.55,2603.4,2602.9,3.84185]
[1724342720297,3.84077,2603.7,2603.0,2.2982]
[1724342720497,7.68094,2603.9,2603.2,3.84133]
[1724342720697,3.84054,2603.8,2603.2,4.455283]
[1724342720901,0.55,2603.7,2603.2,4.455283]
[1724342721098,4.3907,2603.7,2603.2,4.455283]
[1724342721714,0.55,2603.7,2603.2,8.296623]
[1724342721921,4.39056,2603.8,2603.2,4.455283]
[1724342722304,4.39063,2603.8,2603.3,2.7437283]
[1724342722612,3.84069,2603.7,2603.3,2.7437283]
[1724342723310,0.55,2603.6,2603.0,2.4642]
[1724342723666,3.0474,2603.8,2603.0,2.4642]
[1724342723667,3.84075,2603.7,2603.0,2.4642]
[1724342723947,3.84098,2603.5,2603.0,2.4642]
[1724342724248,3.84098,2603.5,2603.0,3.8174116]
[1724342724450,3.84114,2603.4,2603.0,2.4642]
[1724342724651,4.39094,2603.6,2603.0,6.3059]
[1724342724953,3.84078,2603.7,2603.0,2.4642]
[1724342725154,3.84044,2603.9,2603.2,2.4642]
[1724342725330,0.55,2603.8,2603.3,4.471758]
[1724342725530,4.39054,2603.8,2603.3,4.471758]
[1724342725747,0.55,2603.8,2603.3,4.471738]
[1724342726086,3.84025,2604.0,2603.5,3.84095]
[1724342726212,3.84043,2603.9,2603.6,2.438]
[1724342726614,3.84043,2603.9,2603.4,3.84112]
[1724342726615,3.84054,2603.8,2603.3,2.4991]
[1724342727013,3.84085,2603.6,2603.3,2.4991]
[1724342727615,3.841,2603.5,2603.0,2.4991]
[1724342727852,3.841,2603.5,2603.0,6.34077]
[1724342728017,6.09159,2604.0,2603.0,2.4991]
[1724342728018,3.84119,2603.4,2603.0,2.4991]
[1724342728217,3.84128,2603.3,2603.0,2.4991]
[1724342728471,3.84128,2603.3,2602.8,2.4991]
[1724342728628,3.84128,2603.3,2602.8,6.34109]
[1724342729012,7.68265,2603.3,2602.8,6.34109]
[1724342729217,3.84128,2603.3,2602.8,6.34109]
[1724342729658,7.68264,2603.3,2602.8,6.34109]
[1724342729816,7.68268,2603.3,2602.8,6.34109]
[1724342730012,3.84128,2603.3,2602.8,6.34109]
[1724342730459,3.84128,2603.3,2602.5,2.3069]
[1724342730460,3.84207,2602.8,2602.5,2.3069]
[1724342731058,3.84207,2602.8,2601.5,0.64423036]
[1724342731059,3.84231,2602.6,2602.1,2.3069]
[1724342731216,3.84231,2602.6,2602.1,6.76564384]
[1724342731856,3.84206,2602.8,2602.3,3.84272]
[1724342732037,3.84206,2602.8,2602.2,3.84275]
[1724342732241,3.84216,2602.7,2602.2,3.84275]
[1724342732634,3.84206,2602.8,2602.2,4.90430022]
[1724342732957,11.66208,2603.2,2602.6,3.84227]
[1724342733158,0.55,2603.1,2602.6,3.84227]
[1724342733331,3.84173,2603.0,2602.5,3.84233]
[1724342733529,7.68353,2603.0,2602.5,3.84233]
[1724342733728,3.84187,2602.9,2602.5,3.84233]
[1724342733937,3.84187,2602.9,2602.4,3.8426]
[1724342734124,3.84173,2603.0,2602.5,3.84245]
[1724342734325,3.84173,2603.0,2602.5,7.68483]
[1724342734556,3.84173,2603.0,2602.5,8.681333]
[1724342734753,3.84173,2603.0,2602.5,4.838953]
[1724342735061,3.84173,2603.0,2602.5,8.681333]
[1724342735222,3.84173,2603.0,2602.5,4.838953]
[1724342735423,3.84188,2602.9,2602.5,4.838953]
[1724342735847,3.84173,2603.0,2602.5,8.681323]
[1724342736069,3.84173,2603.0,2602.5,4.838943]
[1724342736263,3.84173,2603.0,2602.5,8.681323]
[1724342736433,3.84173,2603.0,2602.5,4.838943]
[1724342736628,0.55,2603.1,2602.6,0.4838943]
[1724342736827,3.84152,2603.2,2602.7,6.16366]
[1724342737023,3.84151,2603.2,2602.7,2.3216]
[1724342737237,3.84165,2603.1,2602.7,2.3216]
[1724342738161,7.68304,2603.2,2602.7,6.16374]
[1724342738336,3.84158,2603.1,2602.7,3.37060643]
[1724342739130,3.84173,2603.0,2602.7,2.3216]
[1724342739326,3.84173,2603.0,2602.5,2.313]
[1724342739650,2.3462,2603.1,2602.4,3.0]
[1724342739857,3.8421,2602.8,2602.3,3.84265]
[1724342740178,3.84217,2602.7,2602.2,2.313]
[1724342740381,3.84217,2602.7,2602.2,6.15577]
[1724342740796,7.68392,2602.9,2602.3,3.84271]
[1724342741243,7.68392,2602.9,2602.2,2.313]
[1724342741244,3.84216,2602.7,2602.2,2.313]
[1724342741427,3.84216,2602.7,2602.2,6.15588]
[1724342741631,3.84201,2602.8,2602.3,3.84273]
[1724342742458,7.68415,2602.8,2602.3,3.84273]
[1724342743172,3.84217,2602.7,2602.3,3.84273]
[1724342743332,3.84236,2602.6,2602.2,2.313]
[1724342744532,3.84264,2602.4,2602.0,0.00704837]
[1724342744826,3.84246,2602.5,2602.0,3.00704837]
[1724342744936,3.84246,2602.5,2602.0,6.85022837]
[1724342745757,6.32105,2602.7,2602.1,3.84302]
[1724342745758,10.16335,2602.7,2602.1,3.84302]
[1724342746077,4.39235,2602.6,2602.1,3.84302]
[1724342746849,7.82096,2602.9,2602.2,2.4279]
[1724342747051,2.4788,2603.1,2602.5,3.84242]
[1724342747052,3.84172,2603.0,2602.5,3.84242]
[1724342747252,3.979,2603.2,2602.3,3.84265]
[1724342747253,3.84189,2602.9,2602.3,7.6853]
[1724342747464,7.68383,2602.9,2602.4,3.84259]
[1724342747663,7.68383,2602.9,2602.3,3.84265]
[1724342747664,3.84201,2602.8,2602.3,3.84265]
[1724342748622,3.84189,2602.9,2602.2,2.4279]
[1724342748623,3.84227,2602.7,2602.2,2.4279]
[1724342748894,4.39231,2602.6,2602.1,3.84294]
[1724342749390,4.39231,2602.6,2602.0,0.00704837]
[1724342749391,0.55,2602.6,2602.0,0.00704837]
[1724342749613,3.84247,2602.5,2602.0,3.85016837]
[1724342749791,3.84268,2602.4,2602.0,0.00704837]
[1724342750424,3.84247,2602.5,2602.0,0.00704837]
[1724342750425,3.84276,2602.3,2602.0,0.00704837]
[1724342751204,7.68559,2602.3,2602.0,0.00704837]
[1724342751556,3.84276,2602.3,2602.0,0.00704837]
[1724342752201,3.84255,2602.5,2602.0,3.85023837]
[1724342752472,0.55,2602.6,2602.2,6.19278]
[1724342752991,3.84259,2602.5,2602.1,0.38502384]
[1724342753134,3.84259,2602.5,2602.0,10.15316837]
[1724342753334,3.84261,2602.4,2602.0,2.46694837]
[1724342753536,3.84261,2602.4,2602.0,0.00704837]
[1724342753732,3.84299,2602.2,2602.0,0.00704837]
[1724342754278,7.68598,2602.2,2602.0,0.00704837]
[1724342754453,3.84299,2602.2,2602.0,0.00704837]